[Event "Titled Tuesday Blitz May 31 Early 2022"]
[White "Meshkovs, Nikita"]
[Black "Pham, Tran Gia Phuc"]
[WhiteFideId "11602740"]
[BlackFideId "12415669"]
[WhiteElo "2506"]
[BlackElo "1789"]
[Result "1-0"]
[Round "03"]
[TimeControl "180+1"]
[Date "2022.05.31"]
[WhiteClock "0:00:54"]
[BlackClock "0:01:15"]

1. Nf3 {[%clk 0:02:56]}  Nf6 {[%clk 0:02:59]} 2. g3 {[%clk 0:02:56]}  g6 {[%clk 0:03:00]} 3. Bg2 {[%clk 0:02:57]}  Bg7 {[%clk 0:03:01]} 4. O-O {[%clk 0:02:57]}  O-O {[%clk 0:03:01]} 5. d4 {[%clk 0:02:58]}  d5 {[%clk 0:03:02]} 6. a4 {[%clk 0:02:57]}  a5 {[%clk 0:03:01]} 7. c3 {[%clk 0:02:53]}  c6 {[%clk 0:03:01]} 8. Bf4 {[%clk 0:02:52]}  Bf5 {[%clk 0:03:01]} 9. Qb3 {[%clk 0:02:53]}  Qc8 {[%clk 0:03:00]} 10. Rc1 {[%clk 0:02:46]}  Ne4 {[%clk 0:02:59]} 11. Nfd2 {[%clk 0:02:43]}  Nd7 {[%clk 0:02:56]} 12. Nxe4 {[%clk 0:02:43]}  Bxe4 {[%clk 0:02:55]} 13. Bxe4 {[%clk 0:02:35]}  dxe4 {[%clk 0:02:55]} 14. Nd2 {[%clk 0:02:35]}  Nf6 {[%clk 0:02:55]} 15. Be5 {[%clk 0:02:34]}  Qf5 {[%clk 0:02:53]} 16. Bxf6 {[%clk 0:02:18]}  exf6 {[%clk 0:02:50]} 17. e3 {[%clk 0:02:04]}  Rab8 {[%clk 0:02:46]} 18. c4 {[%clk 0:02:02]}  Rfe8 {[%clk 0:02:44]} 19. c5 {[%clk 0:02:02]}  h5 {[%clk 0:02:38]} 20. Nc4 {[%clk 0:02:00]}  Qg4 {[%clk 0:02:35]} 21. Nd6 {[%clk 0:01:55]}  Re7 {[%clk 0:02:35]} 22. Qd1 {[%clk 0:01:55]}  Qg5 {[%clk 0:02:35]} 23. h4 {[%clk 0:01:43]}  Qd5 {[%clk 0:02:31]} 24. Qe1 {[%clk 0:01:42]}  b6 {[%clk 0:02:27]} 25. b4 {[%clk 0:01:36]}  f5 {[%clk 0:02:17]} 26. Rab1 {[%clk 0:01:23]}  bxc5 {[%clk 0:02:01]} 27. bxc5 {[%clk 0:01:21]}  Rxb1 {[%clk 0:01:59]} 28. Rxb1 {[%clk 0:01:22]}  Ra7 {[%clk 0:01:59]} 29. Rb8+ {[%clk 0:01:13]}  Kh7 {[%clk 0:01:59]} 30. Qb1 {[%clk 0:01:14]}  Bf6 {[%clk 0:01:46]} 31. Qb3 {[%clk 0:01:08]}  Qxb3 {[%clk 0:01:22]} 32. Rxb3 {[%clk 0:01:09]}  Be7 {[%clk 0:01:22]} 33. Nxf7 {[%clk 0:00:59]}  Bxh4 {[%clk 0:01:22]} 34. Ne5 {[%clk 0:00:55]}  Bf6 {[%clk 0:01:16]} 35. Nxc6 {[%clk 0:00:55]}  Rc7 {[%clk 0:01:15]} 36. Nxa5 {[%clk 0:00:54]} 1-0


[Site "https://www.chess.com"]

[Event "Titled Tuesday Blitz May 31 Early 2022"]
[White "Nakamura, Hikaru"]
[Black "Xu, Yi"]
[WhiteFideId "2016192"]
[BlackFideId "8605564"]
[WhiteElo "2850"]
[BlackElo "2471"]
[Result "1-0"]
[Round "03"]
[TimeControl "180+1"]
[Date "2022.05.31"]
[WhiteClock "0:00:10"]
[BlackClock "0:00:04"]

1. Nf3 {[%clk 0:03:00]}  Nf6 {[%clk 0:02:59]} 2. b3 {[%clk 0:02:58]}  d5 {[%clk 0:03:00]} 3. Bb2 {[%clk 0:02:58]}  e6 {[%clk 0:03:00]} 4. g3 {[%clk 0:02:57]}  b6 {[%clk 0:03:00]} 5. Bg2 {[%clk 0:02:58]}  Bd6 {[%clk 0:03:01]} 6. c4 {[%clk 0:02:58]}  Bb7 {[%clk 0:03:01]} 7. O-O {[%clk 0:02:58]}  O-O {[%clk 0:03:01]} 8. e3 {[%clk 0:02:58]}  Nbd7 {[%clk 0:03:00]} 9. d4 {[%clk 0:02:56]}  Qe7 {[%clk 0:02:54]} 10. cxd5 {[%clk 0:02:55]}  exd5 {[%clk 0:02:54]} 11. Nc3 {[%clk 0:02:53]}  a6 {[%clk 0:02:54]} 12. Qc2 {[%clk 0:02:51]}  Ne4 {[%clk 0:02:52]} 13. Nxe4 {[%clk 0:02:51]}  dxe4 {[%clk 0:02:52]} 14. Nd2 {[%clk 0:02:51]}  f5 {[%clk 0:02:46]} 15. Nc4 {[%clk 0:02:51]}  Rac8 {[%clk 0:02:43]} 16. Rac1 {[%clk 0:02:49]}  Bd5 {[%clk 0:02:36]} 17. Qe2 {[%clk 0:02:43]}  a5 {[%clk 0:02:34]} 18. Nxd6 {[%clk 0:02:40]}  Qxd6 {[%clk 0:02:30]} 19. Rc2 {[%clk 0:02:40]}  c6 {[%clk 0:02:25]} 20. Rfc1 {[%clk 0:02:40]}  a4 {[%clk 0:02:17]} 21. Rc3 {[%clk 0:02:24]}  axb3 {[%clk 0:02:17]} 22. axb3 {[%clk 0:02:25]}  Ra8 {[%clk 0:02:17]} 23. Qc2 {[%clk 0:02:24]}  Ra2 {[%clk 0:02:10]} 24. Qb1 {[%clk 0:02:22]}  Rfa8 {[%clk 0:02:09]} 25. R1c2 {[%clk 0:02:17]}  Nf6 {[%clk 0:02:06]} 26. Qc1 {[%clk 0:02:12]}  Qd7 {[%clk 0:01:58]} 27. Bf1 {[%clk 0:02:11]}  b5 {[%clk 0:01:57]} 28. h3 {[%clk 0:02:02]}  Qf7 {[%clk 0:01:57]} 29. b4 {[%clk 0:01:46]}  h5 {[%clk 0:01:52]} 30. h4 {[%clk 0:01:31]}  R8a6 {[%clk 0:01:32]} 31. Be2 {[%clk 0:01:23]}  Ng4 {[%clk 0:01:23]} 32. Ba3 {[%clk 0:01:18]}  Rxc2 {[%clk 0:01:12]} 33. Rxc2 {[%clk 0:01:17]}  Qa7 {[%clk 0:00:34]} 34. Rc3 {[%clk 0:01:16]}  Qb7 {[%clk 0:00:18]} 35. Rc5 {[%clk 0:01:15]}  Kh7 {[%clk 0:00:18]} 36. Kg2 {[%clk 0:01:15]}  Ra8 {[%clk 0:00:18]} 37. Bb2 {[%clk 0:01:14]}  Qd7 {[%clk 0:00:18]} 38. Rc3 {[%clk 0:01:11]}  Nf6 {[%clk 0:00:17]} 39. Bd1 {[%clk 0:01:07]}  Qd6 {[%clk 0:00:16]} 40. Ba3 {[%clk 0:01:05]}  Ra6 {[%clk 0:00:16]} 41. Qb2 {[%clk 0:01:02]}  Kh6 {[%clk 0:00:16]} 42. Rc1 {[%clk 0:01:02]}  Qd7 {[%clk 0:00:15]} 43. Qc3 {[%clk 0:00:57]}  Qa7 {[%clk 0:00:15]} 44. Bb2 {[%clk 0:00:58]}  Qd7 {[%clk 0:00:16]} 45. Be2 {[%clk 0:00:57]}  Qd6 {[%clk 0:00:16]} 46. Ra1 {[%clk 0:00:56]}  Rxa1 {[%clk 0:00:15]} 47. Bxa1 {[%clk 0:00:57]}  Qc7 {[%clk 0:00:15]} 48. Qa3 {[%clk 0:00:57]}  Qb7 {[%clk 0:00:16]} 49. Qa5 {[%clk 0:00:56]}  Qc8 {[%clk 0:00:13]} 50. Qa7 {[%clk 0:00:55]}  Qd7 {[%clk 0:00:13]} 51. Qb8 {[%clk 0:00:53]}  Qe8 {[%clk 0:00:12]} 52. Qf4+ {[%clk 0:00:53]}  Kh7 {[%clk 0:00:13]} 53. Qxf5+ {[%clk 0:00:53]}  Qg6 {[%clk 0:00:13]} 54. Qf4 {[%clk 0:00:50]}  Ng4 {[%clk 0:00:12]} 55. Bc3 {[%clk 0:00:46]}  Qf6 {[%clk 0:00:12]} 56. Bd1 {[%clk 0:00:21]}  Qxf4 {[%clk 0:00:12]} 57. gxf4 {[%clk 0:00:19]}  Nf6 {[%clk 0:00:12]} 58. Bd2 {[%clk 0:00:18]}  Kg6 {[%clk 0:00:11]} 59. Bc2 {[%clk 0:00:19]}  Kf5 {[%clk 0:00:11]} 60. Kg3 {[%clk 0:00:17]}  g6 {[%clk 0:00:11]} 61. Bc1 {[%clk 0:00:17]}  Ng4 {[%clk 0:00:11]} 62. Bd1 {[%clk 0:00:17]}  Be6 {[%clk 0:00:08]} 63. Be2 {[%clk 0:00:12]}  Kf6 {[%clk 0:00:08]} 64. f3 {[%clk 0:00:12]}  exf3 {[%clk 0:00:07]} 65. Bxf3 {[%clk 0:00:13]}  Bd5 {[%clk 0:00:07]} 66. e4 {[%clk 0:00:13]}  Bc4 {[%clk 0:00:06]} 67. Bxg4 {[%clk 0:00:05]}  hxg4 {[%clk 0:00:06]} 68. Kxg4 {[%clk 0:00:06]}  Be2+ {[%clk 0:00:05]} 69. Kg3 {[%clk 0:00:07]}  Bd3 {[%clk 0:00:05]} 70. Kf3 {[%clk 0:00:07]}  Bc2 {[%clk 0:00:05]} 71. Bb2 {[%clk 0:00:08]}  Ke6 {[%clk 0:00:06]} 72. Ke3 {[%clk 0:00:06]}  Bb1 {[%clk 0:00:06]} 73. Bc3 {[%clk 0:00:07]}  Bc2 {[%clk 0:00:06]} 74. h5 {[%clk 0:00:08]}  gxh5 {[%clk 0:00:06]} 75. f5+ {[%clk 0:00:08]}  Kf6 {[%clk 0:00:04]} 76. d5+ {[%clk 0:00:08]}  Ke7 {[%clk 0:00:04]} 77. dxc6 {[%clk 0:00:08]}  Kd6 {[%clk 0:00:04]} 78. Kf4 {[%clk 0:00:09]}  Kxc6 {[%clk 0:00:04]} 79. e5 {[%clk 0:00:09]}  Kd7 {[%clk 0:00:04]} 80. Be1 {[%clk 0:00:09]}  Ke7 {[%clk 0:00:04]} 81. Bh4+ {[%clk 0:00:09]}  Kf7 {[%clk 0:00:04]} 82. e6+ {[%clk 0:00:10]}  Ke8 {[%clk 0:00:05]} 83. f6 {[%clk 0:00:10]}  Bb3 {[%clk 0:00:04]} 84. Ke5 {[%clk 0:00:10]}  Bc4 {[%clk 0:00:04]} 85. Bg5 {[%clk 0:00:10]} 1-0


[Site "https://www.chess.com"]

[Event "Titled Tuesday Blitz May 31 Early 2022"]
[White "Plazuelo Pascual, Juan"]
[Black "Pakleza, Zbigniew"]
[WhiteFideId "32059566"]
[BlackFideId "1119290"]
[WhiteElo "2359"]
[BlackElo "2467"]
[Result "1/2-1/2"]
[Round "03"]
[TimeControl "180+1"]
[Date "2022.06.01"]
[WhiteClock "0:00:10"]
[BlackClock "0:00:07"]

1. d4 {[%clk 0:03:00]}  d6 {[%clk 0:02:59]} 2. e4 {[%clk 0:03:00]}  Nf6 {[%clk 0:03:00]} 3. Nc3 {[%clk 0:03:01]}  c6 {[%clk 0:03:00]} 4. f4 {[%clk 0:03:01]}  Qb6 {[%clk 0:03:00]} 5. e5 {[%clk 0:02:52]}  Nd5 {[%clk 0:02:59]} 6. Nxd5 {[%clk 0:02:50]}  cxd5 {[%clk 0:03:00]} 7. c3 {[%clk 0:02:48]}  Bf5 {[%clk 0:02:59]} 8. Nf3 {[%clk 0:02:47]}  e6 {[%clk 0:02:56]} 9. Be2 {[%clk 0:02:38]}  Nc6 {[%clk 0:02:55]} 10. O-O {[%clk 0:02:38]}  Be7 {[%clk 0:02:54]} 11. Kh1 {[%clk 0:02:36]}  O-O-O {[%clk 0:02:50]} 12. a4 {[%clk 0:02:35]}  Kb8 {[%clk 0:02:40]} 13. exd6 {[%clk 0:02:15]}  Bxd6 {[%clk 0:02:40]} 14. Ne5 {[%clk 0:02:16]}  Qc7 {[%clk 0:02:38]} 15. a5 {[%clk 0:02:08]}  a6 {[%clk 0:02:30]} 16. Qa4 {[%clk 0:02:02]}  Rc8 {[%clk 0:02:18]} 17. b4 {[%clk 0:01:39]}  f6 {[%clk 0:02:17]} 18. Nd3 {[%clk 0:01:35]}  Bxd3 {[%clk 0:01:25]} 19. Bxd3 {[%clk 0:01:36]}  Na7 {[%clk 0:01:20]} 20. Bd2 {[%clk 0:01:24]}  Qc6 {[%clk 0:01:20]} 21. Qxc6 {[%clk 0:01:13]}  Rxc6 {[%clk 0:01:21]} 22. Rae1 {[%clk 0:01:13]}  Bc7 {[%clk 0:01:13]} 23. Re2 {[%clk 0:01:12]}  Kc8 {[%clk 0:01:12]} 24. Rfe1 {[%clk 0:00:41]}  Kd7 {[%clk 0:01:12]} 25. g4 {[%clk 0:00:42]}  Nb5 {[%clk 0:01:07]} 26. Bxb5 {[%clk 0:00:41]}  axb5 {[%clk 0:01:08]} 27. Kg2 {[%clk 0:00:37]}  h5 {[%clk 0:01:04]} 28. h3 {[%clk 0:00:37]}  hxg4 {[%clk 0:01:04]} 29. hxg4 {[%clk 0:00:38]}  Rh4 {[%clk 0:00:46]} 30. Kf3 {[%clk 0:00:38]}  Ke7 {[%clk 0:00:37]} 31. f5 {[%clk 0:00:29]}  Rh3+ {[%clk 0:00:26]} 32. Kg2 {[%clk 0:00:29]}  Rh2+ {[%clk 0:00:18]} 33. Kf3 {[%clk 0:00:27]}  Rh3+ {[%clk 0:00:18]} 34. Kg2 {[%clk 0:00:27]}  Rh2+ {[%clk 0:00:17]} 35. Kf3 {[%clk 0:00:28]}  Rxe2 {[%clk 0:00:17]} 36. Rxe2 {[%clk 0:00:28]}  e5 {[%clk 0:00:17]} 37. g5 {[%clk 0:00:18]}  Rc4 {[%clk 0:00:11]} 38. g6 {[%clk 0:00:07]}  Bd6 {[%clk 0:00:09]} 39. Be1 {[%clk 0:00:06]}  Kd7 {[%clk 0:00:09]} 40. dxe5 {[%clk 0:00:06]}  Bxe5 {[%clk 0:00:09]} 41. Ra2 {[%clk 0:00:03]}  Rf4+ {[%clk 0:00:08]} 42. Ke2 {[%clk 0:00:03]}  Rxf5 {[%clk 0:00:09]} 43. a6 {[%clk 0:00:03]}  bxa6 {[%clk 0:00:09]} 44. Rxa6 {[%clk 0:00:03]}  Rg5 {[%clk 0:00:06]} 45. Ra7+ {[%clk 0:00:04]}  Bc7 {[%clk 0:00:07]} 46. Bd2 {[%clk 0:00:03]}  Rf5 {[%clk 0:00:04]} 47. Be3 {[%clk 0:00:02]}  Kc6 {[%clk 0:00:03]} 48. Ra6+ {[%clk 0:00:03]}  Kb7 {[%clk 0:00:03]} 49. Ra7+ {[%clk 0:00:03]}  Kb8 {[%clk 0:00:04]} 50. Ra6 {[%clk 0:00:04]}  Re5 {[%clk 0:00:04]} 51. Kd3 {[%clk 0:00:04]}  Re4 {[%clk 0:00:04]} 52. Bc5 {[%clk 0:00:03]}  Rg4 {[%clk 0:00:04]} 53. Re6 {[%clk 0:00:03]}  Rxg6 {[%clk 0:00:04]} 54. Re8+ {[%clk 0:00:04]}  Kb7 {[%clk 0:00:04]} 55. Re7 {[%clk 0:00:05]}  Kc6 {[%clk 0:00:05]} 56. Re6+ {[%clk 0:00:05]}  Kd7 {[%clk 0:00:05]} 57. Re7+ {[%clk 0:00:06]}  Kd8 {[%clk 0:00:06]} 58. Rf7 {[%clk 0:00:06]}  Rg4 {[%clk 0:00:06]} 59. Bf8 {[%clk 0:00:05]}  Rg3+ {[%clk 0:00:04]} 60. Kc2 {[%clk 0:00:05]}  Ke8 {[%clk 0:00:05]} 61. Rxg7 {[%clk 0:00:03]}  Kxf8 {[%clk 0:00:02]} 62. Rxc7 {[%clk 0:00:03]}  f5 {[%clk 0:00:02]} 63. Rc5 {[%clk 0:00:04]}  f4 {[%clk 0:00:02]} 64. Rxd5 {[%clk 0:00:04]}  f3 {[%clk 0:00:03]} 65. Rf5+ {[%clk 0:00:05]}  Ke7 {[%clk 0:00:03]} 66. Kb3 {[%clk 0:00:06]}  Ke6 {[%clk 0:00:04]} 67. Rf8 {[%clk 0:00:06]}  Ke5 {[%clk 0:00:05]} 68. c4 {[%clk 0:00:07]}  f2+ {[%clk 0:00:04]} 69. Kc2 {[%clk 0:00:07]}  Rg2 {[%clk 0:00:04]} 70. Kb3 {[%clk 0:00:07]}  bxc4+ {[%clk 0:00:05]} 71. Kxc4 {[%clk 0:00:07]}  Ke4 {[%clk 0:00:06]} 72. b5 {[%clk 0:00:08]}  Ke3 {[%clk 0:00:07]} 73. Kc5 {[%clk 0:00:08]}  Rg4 {[%clk 0:00:06]} 74. Rxf2 {[%clk 0:00:07]}  Kxf2 {[%clk 0:00:07]} 75. b6 {[%clk 0:00:08]}  Rg5+ {[%clk 0:00:07]} 76. Kc6 {[%clk 0:00:08]}  Rg6+ {[%clk 0:00:07]} 77. Kc7 {[%clk 0:00:09]}  Rg7+ {[%clk 0:00:07]} 78. Kc6 {[%clk 0:00:09]}  Rg6+ {[%clk 0:00:06]} 79. Kc7 {[%clk 0:00:10]}  Rxb6 {[%clk 0:00:07]} 80. Kxb6 {[%clk 0:00:10]} 1/2-1/2


[Site "https://www.chess.com"]

[Event "Titled Tuesday Blitz May 31 Early 2022"]
[White "Sadubayev, Airat"]
[Black "Vokhidov, Shamsiddin"]
[WhiteFideId "13713264"]
[BlackFideId "14204223"]
[WhiteElo "2234"]
[BlackElo "2611"]
[Result "0-1"]
[Round "03"]
[TimeControl "180+1"]
[Date "2022.05.31"]
[WhiteClock "0:00:02"]
[BlackClock "0:01:07"]

1. e4 {[%clk 0:02:59]}  c5 {[%clk 0:02:59]} 2. Nf3 {[%clk 0:02:58]}  Nc6 {[%clk 0:03:00]} 3. Bb5 {[%clk 0:02:57]}  Nf6 {[%clk 0:03:00]} 4. Bxc6 {[%clk 0:02:55]}  dxc6 {[%clk 0:03:01]} 5. d3 {[%clk 0:02:54]}  Bg4 {[%clk 0:03:01]} 6. O-O {[%clk 0:02:50]}  Nd7 {[%clk 0:02:58]} 7. h3 {[%clk 0:02:46]}  Bh5 {[%clk 0:02:58]} 8. Be3 {[%clk 0:02:32]}  e5 {[%clk 0:02:57]} 9. Nbd2 {[%clk 0:02:31]}  Bd6 {[%clk 0:02:57]} 10. Qe1 {[%clk 0:02:28]}  Qe7 {[%clk 0:02:56]} 11. Nh2 {[%clk 0:02:27]}  O-O {[%clk 0:02:55]} 12. a4 {[%clk 0:02:21]}  Bg6 {[%clk 0:02:53]} 13. b3 {[%clk 0:02:16]}  Rad8 {[%clk 0:02:52]} 14. f4 {[%clk 0:02:09]}  exf4 {[%clk 0:02:50]} 15. Bxf4 {[%clk 0:02:10]}  Ne5 {[%clk 0:02:48]} 16. Qg3 {[%clk 0:02:06]}  f6 {[%clk 0:02:45]} 17. Nhf3 {[%clk 0:01:57]}  Nxf3+ {[%clk 0:02:44]} 18. Nxf3 {[%clk 0:01:57]}  Bxf4 {[%clk 0:02:39]} 19. Qxf4 {[%clk 0:01:58]}  Bf7 {[%clk 0:02:38]} 20. Rae1 {[%clk 0:01:55]}  Be6 {[%clk 0:02:38]} 21. Qg3 {[%clk 0:01:48]}  b5 {[%clk 0:02:38]} 22. Ra1 {[%clk 0:01:45]}  c4 {[%clk 0:02:37]} 23. bxc4 {[%clk 0:01:39]}  bxc4 {[%clk 0:02:38]} 24. d4 {[%clk 0:01:38]}  c3 {[%clk 0:02:36]} 25. Rfe1 {[%clk 0:01:28]}  Bc4 {[%clk 0:02:34]} 26. Nh4 {[%clk 0:01:24]}  Be6 {[%clk 0:02:21]} 27. Qxc3 {[%clk 0:01:21]}  Qd6 {[%clk 0:02:11]} 28. Rad1 {[%clk 0:01:12]}  Rfe8 {[%clk 0:02:06]} 29. Nf3 {[%clk 0:01:09]}  Bf7 {[%clk 0:02:02]} 30. Qa5 {[%clk 0:01:00]}  Bg6 {[%clk 0:01:57]} 31. e5 {[%clk 0:00:31]}  Qd7 {[%clk 0:01:56]} 32. exf6 {[%clk 0:00:28]}  gxf6 {[%clk 0:01:57]} 33. c3 {[%clk 0:00:24]}  Be4 {[%clk 0:01:57]} 34. Qh5 {[%clk 0:00:22]}  Kh8 {[%clk 0:01:57]} 35. Re3 {[%clk 0:00:21]}  Bg6 {[%clk 0:01:46]} 36. Qh6 {[%clk 0:00:19]}  Rxe3 {[%clk 0:01:45]} 37. Qxe3 {[%clk 0:00:20]}  c5 {[%clk 0:01:45]} 38. Rd2 {[%clk 0:00:19]}  c4 {[%clk 0:01:43]} 39. a5 {[%clk 0:00:17]}  Re8 {[%clk 0:01:41]} 40. Qf4 {[%clk 0:00:17]}  Kg7 {[%clk 0:01:41]} 41. d5 {[%clk 0:00:17]}  Bd3 {[%clk 0:01:41]} 42. Kh2 {[%clk 0:00:14]}  Qxd5 {[%clk 0:01:40]} 43. Rb2 {[%clk 0:00:13]}  Re7 {[%clk 0:01:36]} 44. a6 {[%clk 0:00:11]}  Qc6 {[%clk 0:01:29]} 45. Qg4+ {[%clk 0:00:07]}  Bg6 {[%clk 0:01:26]} 46. Nd4 {[%clk 0:00:06]}  Qd5 {[%clk 0:01:21]} 47. Rb7 {[%clk 0:00:04]}  Rxb7 {[%clk 0:01:20]} 48. axb7 {[%clk 0:00:04]}  Qxb7 {[%clk 0:01:21]} 49. Qe6 {[%clk 0:00:04]}  Qb8+ {[%clk 0:01:17]} 50. Kg1 {[%clk 0:00:03]}  Qc7 {[%clk 0:01:13]} 51. Qd5 {[%clk 0:00:02]}  Bf7 {[%clk 0:01:10]} 52. Nf5+ {[%clk 0:00:02]}  Kf8 {[%clk 0:01:09]} 53. Qd4 {[%clk 0:00:02]}  Qb6 {[%clk 0:01:07]} 0-1


[Site "https://www.chess.com"]

[Event "Titled Tuesday Blitz May 31 Early 2022"]
[White "Sokolovsky, Yahli"]
[Black "Jain, Naveen"]
[WhiteFideId "2820242"]
[BlackFideId "5003970"]
[WhiteElo "1770"]
[BlackElo "2036"]
[Result "1-0"]
[Round "03"]
[TimeControl "180+1"]
[Date "2022.06.01"]
[WhiteClock "0:00:08"]
[BlackClock "0:00:02"]

1. b3 {[%clk 0:03:00]}  Nf6 {[%clk 0:02:58]} 2. Bb2 {[%clk 0:03:01]}  g6 {[%clk 0:02:58]} 3. d4 {[%clk 0:03:01]}  Bg7 {[%clk 0:02:58]} 4. Nf3 {[%clk 0:03:02]}  O-O {[%clk 0:02:58]} 5. g3 {[%clk 0:03:03]}  d6 {[%clk 0:02:57]} 6. Bg2 {[%clk 0:03:04]}  Nc6 {[%clk 0:02:56]} 7. d5 {[%clk 0:02:55]}  Nb8 {[%clk 0:02:55]} 8. O-O {[%clk 0:02:55]}  c6 {[%clk 0:02:55]} 9. c4 {[%clk 0:02:53]}  cxd5 {[%clk 0:02:54]} 10. cxd5 {[%clk 0:02:54]}  Bg4 {[%clk 0:02:53]} 11. Nc3 {[%clk 0:02:48]}  Bxf3 {[%clk 0:02:52]} 12. Bxf3 {[%clk 0:02:49]}  Nbd7 {[%clk 0:02:53]} 13. Bg2 {[%clk 0:02:48]}  a6 {[%clk 0:02:52]} 14. Rc1 {[%clk 0:02:37]}  Rc8 {[%clk 0:02:51]} 15. Qd2 {[%clk 0:02:16]}  b5 {[%clk 0:02:48]} 16. Rc2 {[%clk 0:02:13]}  Qb6 {[%clk 0:02:43]} 17. Rfc1 {[%clk 0:02:11]}  Rc5 {[%clk 0:02:10]} 18. Nd1 {[%clk 0:01:32]}  Rxc2 {[%clk 0:01:58]} 19. Rxc2 {[%clk 0:01:26]}  b4 {[%clk 0:01:53]} 20. Bd4 {[%clk 0:01:09]}  Nc5 {[%clk 0:01:52]} 21. Nb2 {[%clk 0:01:01]}  Nfd7 {[%clk 0:01:51]} 22. Bxg7 {[%clk 0:00:55]}  Kxg7 {[%clk 0:01:51]} 23. Qd4+ {[%clk 0:00:56]}  Kg8 {[%clk 0:01:50]} 24. e3 {[%clk 0:00:47]}  Qb5 {[%clk 0:01:45]} 25. Bf1 {[%clk 0:00:47]}  Qb7 {[%clk 0:01:39]} 26. h4 {[%clk 0:00:45]}  h5 {[%clk 0:01:35]} 27. Nc4 {[%clk 0:00:28]}  Nf6 {[%clk 0:01:17]} 28. Bg2 {[%clk 0:00:27]}  Qb5 {[%clk 0:01:13]} 29. Bf1 {[%clk 0:00:27]}  Qb7 {[%clk 0:01:04]} 30. Bg2 {[%clk 0:00:27]}  Ra8 {[%clk 0:01:04]} 31. Na5 {[%clk 0:00:26]}  Qd7 {[%clk 0:00:53]} 32. Qxb4 {[%clk 0:00:22]}  Nd3 {[%clk 0:00:37]} 33. Qd2 {[%clk 0:00:16]}  Ne5 {[%clk 0:00:35]} 34. Nc6 {[%clk 0:00:17]}  Qb7 {[%clk 0:00:24]} 35. Qd4 {[%clk 0:00:15]}  Re8 {[%clk 0:00:20]} 36. Nxe5 {[%clk 0:00:15]}  dxe5 {[%clk 0:00:20]} 37. Qxe5 {[%clk 0:00:15]}  Rc8 {[%clk 0:00:16]} 38. d6 {[%clk 0:00:11]}  Qb8 {[%clk 0:00:16]} 39. Rxc8+ {[%clk 0:00:04]}  Qxc8 {[%clk 0:00:16]} 40. Qb2 {[%clk 0:00:04]}  Ng4 {[%clk 0:00:14]} 41. dxe7 {[%clk 0:00:04]}  Qd7 {[%clk 0:00:14]} 42. Qc2 {[%clk 0:00:04]}  Qxe7 {[%clk 0:00:14]} 43. Bh3 {[%clk 0:00:04]}  Nf6 {[%clk 0:00:14]} 44. Bg2 {[%clk 0:00:04]}  a5 {[%clk 0:00:14]} 45. Qc8+ {[%clk 0:00:04]}  Kg7 {[%clk 0:00:14]} 46. Qc3 {[%clk 0:00:05]}  Qa3 {[%clk 0:00:13]} 47. Qc2 {[%clk 0:00:06]}  Qb4 {[%clk 0:00:12]} 48. Bf3 {[%clk 0:00:06]}  Qa3 {[%clk 0:00:12]} 49. Kg2 {[%clk 0:00:06]}  Qb4 {[%clk 0:00:12]} 50. Qb2 {[%clk 0:00:07]}  Qc5 {[%clk 0:00:11]} 51. a3 {[%clk 0:00:08]}  Qb6 {[%clk 0:00:09]} 52. b4 {[%clk 0:00:08]}  axb4 {[%clk 0:00:09]} 53. Qxb4 {[%clk 0:00:08]}  Qe6 {[%clk 0:00:08]} 54. a4 {[%clk 0:00:08]}  Nd7 {[%clk 0:00:07]} 55. Qd4+ {[%clk 0:00:08]}  Kg8 {[%clk 0:00:06]} 56. a5 {[%clk 0:00:08]}  Ne5 {[%clk 0:00:05]} 57. Qd5 {[%clk 0:00:08]}  Qe7 {[%clk 0:00:04]} 58. a6 {[%clk 0:00:08]}  Kg7 {[%clk 0:00:03]} 59. Qb7 {[%clk 0:00:08]}  Qf6 {[%clk 0:00:02]} 60. a7 {[%clk 0:00:08]} 1-0


[Site "https://www.chess.com"]

[Event "Titled Tuesday Blitz May 31 Early 2022"]
[White "Stankovic, Ivan G"]
[Black "Molina, Roberto Junio Brito"]
[WhiteFideId "902837"]
[BlackFideId "2109450"]
[WhiteElo "2195"]
[BlackElo "2432"]
[Result "0-1"]
[Round "03"]
[TimeControl "180+1"]
[Date "2022.05.31"]
[WhiteClock "0:00:07"]
[BlackClock "0:00:21"]

1. e4 {[%clk 0:03:00]}  c6 {[%clk 0:02:58]} 2. d4 {[%clk 0:02:55]}  d5 {[%clk 0:02:58]} 3. e5 {[%clk 0:02:55]}  Bf5 {[%clk 0:02:58]} 4. Nf3 {[%clk 0:02:55]}  e6 {[%clk 0:02:57]} 5. Be2 {[%clk 0:02:53]}  Nd7 {[%clk 0:02:58]} 6. Nbd2 {[%clk 0:02:53]}  h6 {[%clk 0:02:57]} 7. Nb3 {[%clk 0:02:53]}  Ne7 {[%clk 0:02:57]} 8. O-O {[%clk 0:02:47]}  Bh7 {[%clk 0:02:57]} 9. a4 {[%clk 0:02:47]}  Ng6 {[%clk 0:02:55]} 10. Be3 {[%clk 0:02:43]}  Be7 {[%clk 0:02:53]} 11. a5 {[%clk 0:02:43]}  a6 {[%clk 0:02:49]} 12. c4 {[%clk 0:02:36]}  dxc4 {[%clk 0:02:48]} 13. Bxc4 {[%clk 0:02:36]}  O-O {[%clk 0:02:47]} 14. Qd2 {[%clk 0:02:31]}  Re8 {[%clk 0:02:36]} 15. Rfd1 {[%clk 0:02:23]}  b5 {[%clk 0:02:20]} 16. Bd3 {[%clk 0:02:08]}  Rc8 {[%clk 0:02:18]} 17. Rac1 {[%clk 0:02:07]}  Bf8 {[%clk 0:01:59]} 18. Be4 {[%clk 0:02:06]}  Ne7 {[%clk 0:01:58]} 19. Bxh7+ {[%clk 0:01:55]}  Kxh7 {[%clk 0:01:59]} 20. Qd3+ {[%clk 0:01:40]}  Kg8 {[%clk 0:01:57]} 21. Nfd2 {[%clk 0:01:40]}  Nd5 {[%clk 0:01:56]} 22. Ne4 {[%clk 0:01:38]}  c5 {[%clk 0:01:27]} 23. Nbxc5 {[%clk 0:01:14]}  Bxc5 {[%clk 0:01:17]} 24. Nxc5 {[%clk 0:01:14]}  Nxc5 {[%clk 0:01:16]} 25. dxc5 {[%clk 0:01:06]}  Qxa5 {[%clk 0:01:14]} 26. Bd2 {[%clk 0:01:06]}  Qc7 {[%clk 0:01:13]} 27. b4 {[%clk 0:01:05]}  Qxe5 {[%clk 0:01:09]} 28. Ra1 {[%clk 0:00:56]}  Rc6 {[%clk 0:01:08]} 29. g3 {[%clk 0:00:54]}  Qf6 {[%clk 0:01:01]} 30. Ra5 {[%clk 0:00:52]}  Rd8 {[%clk 0:00:58]} 31. Be1 {[%clk 0:00:46]}  Rd7 {[%clk 0:00:54]} 32. Qa3 {[%clk 0:00:43]}  e5 {[%clk 0:00:31]} 33. Ra1 {[%clk 0:00:30]}  Nc7 {[%clk 0:00:29]} 34. Qe3 {[%clk 0:00:20]}  Qe6 {[%clk 0:00:28]} 35. Bc3 {[%clk 0:00:20]}  f6 {[%clk 0:00:28]} 36. Qe4 {[%clk 0:00:16]}  Rd5 {[%clk 0:00:27]} 37. R5a2 {[%clk 0:00:13]}  Qd7 {[%clk 0:00:25]} 38. Qc2 {[%clk 0:00:11]}  Re6 {[%clk 0:00:24]} 39. Qb3 {[%clk 0:00:12]}  Qf7 {[%clk 0:00:23]} 40. Qc2 {[%clk 0:00:10]}  Re8 {[%clk 0:00:22]} 41. Qe4 {[%clk 0:00:10]}  Red8 {[%clk 0:00:22]} 42. Rc2 {[%clk 0:00:09]}  Rd1+ {[%clk 0:00:21]} 43. Rxd1 {[%clk 0:00:08]}  Rxd1+ {[%clk 0:00:22]} 44. Kg2 {[%clk 0:00:08]}  Qd5 {[%clk 0:00:22]} 45. Qxd5+ {[%clk 0:00:08]}  Nxd5 {[%clk 0:00:23]} 46. Bd2 {[%clk 0:00:07]}  Kf7 {[%clk 0:00:21]} 0-1


[Site "https://www.chess.com"]